[Event "Croatian Team Cup Final 2022"]
[Site "Vodice"]
[Date "2022.05.18"]
[Round "1.20"]
[White "Loncar, Robert"]
[Black "Leakovic, Ivica"]
[Result "0-1"]
[ECO "D37"]
[WhiteElo "2370"]
[BlackElo "2103"]
[Annotator "TA"]
[PlyCount "116"]
[EventDate "2022.05.18"]
[EventType "team-tourn"]
[EventCountry "CRO"]
[SourceTitle "playchess.com"]
[Source "ChessBase"]
[SourceQuality "1"]
[TimeControl "40/5400+30:1800+30"]

{[%evp 10,116,35,23,62,60,49,55,100,90,99,90,161,171,171,171,176,166,225,229,222,206,242,236,585,581,554,531,592,587,819,806,777,771,845,236,228,226,193,8,0,0,24,35,22,0,0,0,0,0,0,0,0,3,3,0,28,0,0,0,0,0,0,0,0,-34,0,0,0,0,0,-20,0,-15,-16,-15,0,0,0,-8,0,-8,0,0,0,-8,0,0,0,0,0,0,0,0,29,0,0,-1160,-1102,-2581,-2433,-10987,-11235,-8016,-6420,-12519,-6095,-29987,-29988]} 1. d4 {[%emt 0:00:30]} d5 {[%emt 0:00:30]} 2. c4 {[%emt 0:00:30]} e6 {[%emt 0:00:30]} 3. Nf3 {[%emt 0:00:30]} Nf6 {[%emt 0:00:30]} 4. Nc3 {[%emt 0:00:30]} Be7 {[%emt 0:00:30]} 5. Bf4 {[%emt 0:00:30]} c6 {[%emt 0:00:30]} 6. e3 {[%emt 0:00:30]} Bb4 {[%emt 0:00:30] [#] D37: Queen's Gambit Declined: 5 Bf4.} 7. a3 $146 {[%emt 0:00:30]} ({Predecessor:} 7. Qb3 Qa5 8. a3 Bxc3+ 9. bxc3 Ne4 10. Qb4 Qd8 11. Be2 Na6 12. Qb2 Qa5 13. Rc1 O-O 14. O-O {1-0 (46) Bryzgalin,K (2449)-Safin,R (2287) Chess.com INT 2020}) 7... Bxc3+ {[%emt 0:00:30]} 8. bxc3 {[%emt 0:00:30]} dxc4 {[%emt 0:00:30] White is slightly better.} 9. Bxc4 {[%emt 0:00:30]} Nd5 {[%emt 0:00:30]} 10. Be5 {[%emt 0:00:30]} Nd7 {[%emt 0:00:30]} (10... f6 $16) 11. Bxg7 $18 {[%emt 0:00:30]} Rg8 {[%emt 0:00:30]} 12. Be5 {[%emt 0:00:30]} (12. Bxd5 $6 exd5 13. Be5 Nxe5 14. Nxe5 Qe7 $16) 12... Nxe5 {[%emt 0:00:30]} 13. Nxe5 {[%emt 0:00:30]} Rxg2 {[%emt 0:00:30]} (13... Rg7 $142 14. Qf3 Nxc3) 14. Qf3 {[%emt 0:00:30][%csl Ge5,LRf7,LRg2][%cal Rf3f7]} Rg7 {[%emt 0:00:30]} 15. Kd2 {[%emt 0:00:30]} Qe7 {[%emt 0:00:30]} 16. Rhg1 {[%emt 0:00:30]} f6 $2 {[%emt 0:00:30]} (16... Qf8 {is more resistant.} 17. Bxd5 exd5) 17. Qh5+ {[%emt 0:00:30]} Kd8 {[%emt 0:00:30]} 18. Qh6 {[%emt 0:00:30]} Rxg1 {[%emt 0:00:30]} 19. Rxg1 {[%emt 0:00:30] aiming for Rg8+.} Qxa3 {[%emt 0:00:30]} 20. Bxd5 {[%emt 0:00:30]} Qb2+ {[%emt 0:00:30]} 21. Kd3 {[%emt 0:00:30]} exd5 {[%emt 0:00:30] [#]} 22. Qxf6+ $2 {[%emt 0:00:30]} (22. Qxh7 $1 {[%cal Rg1g8]} Bf5+ 23. Qxf5 Qb5+ 24. Kc2 Qa4+ 25. Kd2 Qa2+ 26. Kd1) 22... Kc7 {[%emt 0:00:30] [#]} 23. Qe7+ $1 {[%emt 0:00:30]} Kb6 {[%emt 0:00:30]} 24. Qb4+ $2 {[%emt 0:00:30]} ({Weaker is} 24. Qxh7 Be6 25. Nd7+ Bxd7 26. Qxd7 a5 $15) (24. Qc5+ $18 Ka6 25. e4 Qb5+ 26. Qxb5+ Kxb5 27. c4+ Ka6 28. f4 (28. exd5 cxd5 29. cxd5 b5 $16)) 24... Qxb4 $11 {[%emt 0:00:30] Really sharp!} 25. cxb4 {[%emt 0:00:30][%mdl 4096] Endgame KRB-KRN} a5 {[%emt 0:00:30]} 26. bxa5+ {[%emt 0:00:30]} Rxa5 {[%emt 0:00:30]} 27. Rb1+ {[%emt 0:00:30]} Kc7 {[%emt 0:00:30]} 28. Rg1 {[%emt 0:00:30]} Ra2 {[%emt 0:00:30]} 29. Rg7+ {[%emt 0:00:30]} Kb6 {[%emt 0:00:30]} 30. Rf7 {[%emt 0:00:30]} Be6 {[%emt 0:00:30]} 31. Rf6 {[%emt 0:00:30]} Bh3 {[%emt 0:00:30]} 32. Kc3 {[%emt 0:00:30]} Ra1 {[%emt 0:00:30]} 33. Nd3 {[%emt 0:00:30]} Kb5 {[%emt 0:00:30]} 34. Nf4 {[%emt 0:00:30]} Bf1 {[%emt 0:00:30]} 35. Rf7 {[%emt 0:00:30][%csl LRb7,LRh7]} b6 {[%emt 0:00:30]} 36. Rxh7 {[%emt 0:00:30]} Ra2 {[%emt 0:00:30]} 37. Ne6 {[%emt 0:00:30]} Rxf2 {[%emt 0:00:30]} 38. Nc7+ {[%emt 0:00:30]} Ka5 $1 {[%emt 0:00:30] ...b5 is the strong threat.} 39. Na8 {[%emt 0:00:30] White wants to mate with Ra7+.} Ka6 {[%emt 6:24:02] Prevents Ra7+.} 40. h4 {[%emt 0:58:33][%cal Bh2h4,Bh4h5][%mdl 32]} Re2 {[%emt 0:00:00]} 41. Nc7+ {[%emt 0:30:30]} Ka5 {[%emt 0:00:00]} 42. Re7 {[%emt 0:00:30]} Rh2 {[%emt 0:00:00] And now ...b5 would win.} 43. Rf7 {[%emt 0:00:30]} Bc4 {[%emt 0:00:00]} 44. Na8 {[%emt 0:00:30] Threatening mate with Ra7+.} Ka6 {[%emt 0:00:00] Inhibits Ra7+.} (44... Rxh4 $2 {gets mated.} 45. Ra7+ Ba6 46. Nc7 Rh8 47. Rxa6#) 45. h5 {[%emt 0:00:30]} Kb5 {[%emt 0:00:00]} 46. Rb7 {[%emt 0:00:30] Nc7+ would kill now.} Ka6 $1 {[%emt 0:00:00]} 47. Rh7 {[%emt 0:00:30]} Re2 {[%emt 0:00:00]} 48. Re7 {[%emt 0:00:30]} Rh2 {[%emt 0:00:00]} 49. h6 {[%emt 0:25:01]} Rxh6 {[%emt 0:00:00]} 50. Kb4 $1 {[%emt 0:06:25] Strongly threatening Nc7+.} b5 {[%emt 0:00:00]} 51. Kc5 {[%emt 0:00:25]} Rg6 {[%emt 0:00:00]} 52. Nc7+ {[%emt 0:01:43]} (52. Nb6 $5 {[%cal Rb6c8]} Rg8 53. Rc7 $16) 52... Ka5 {[%emt 0:00:00]} 53. Nxd5 $2 {[%emt 0:00:30][%mdl 8192]} cxd5 {[%emt 0:00:00][%cal Bc6d5,Bd5e4][%mdl 32] KRB-KR} 54. e4 {[%emt 0:00:21]} dxe4 {[%emt 0:00:00] Threatens to win with ...Rg5+.} 55. d5 {[%emt 0:00:01]} Ka4 {[%emt 0:00:00]} 56. d6 {[%emt 0:00:09]} Rg5+ {[%emt 0:00:00]} 57. Kc6 {[%emt 0:00:32] [#]} b4 $1 {[%emt 0:00:00]} 58. Rxe4 {[%emt 0:00:38]} Bd5+ {[%emt 0:00:00] Quite a comeback for Black.  Weighted Error Value: White=0.74/Black=0.19 (very precise)} 0-1

[Event "Croatian Team Cup Final 2022"]
[Site "Vodice"]
[Date "2022.05.18"]
[Round "1.21"]
[White "Jovanovic, Zoran"]
[Black "Kalajzic, Ivan"]
[Result "1-0"]
[ECO "B06"]
[WhiteElo "2523"]
[BlackElo "2105"]
[Annotator "TA"]
[PlyCount "49"]
[EventDate "2022.05.18"]
[EventType "team-tourn"]
[EventCountry "CRO"]
[SourceTitle "playchess.com"]
[Source "ChessBase"]
[SourceQuality "1"]
[TimeControl "40/5400+30:1800+30"]

{[%evp 9,49,35,41,43,74,75,142,141,141,130,175,192,248,255,265,236,293,272,281,292,277,288,272,193,183,186,203,203,235,225,208,207,203,206,267,222,929,917,905,904,29995,29996]} 1. e4 {[%emt 0:00:02]} Nc6 {[%emt 0:03:11]} 2. Nf3 {[%emt 0:00:34]} d6 {[%emt 0:00:15]} 3. d4 {[%emt 0:01:00]} g6 {[%emt 0:00:54]} 4. Nc3 {[%emt 0:05:04]} Bg7 {[%emt 0:02:56]} 5. h3 {[%emt 0:00:57]} a6 {[%emt 0:01:30]} 6. Bg5 {[%emt 0:07:57] [#] B06: Modern Defence.} f6 $146 {[%emt 0:11:15]} ({Predecessor:} 6... h6 7. Bh4 g5 8. Bg3 g4 9. hxg4 Bxg4 10. d5 Nd4 11. Qd3 Nxf3+ 12. gxf3 Bd7 13. f4 {1-0 (22) Akselrod,V (2392)-Karimov,A (2091) Novosibirsk 2016}) 7. Be3 {[%emt 0:02:57] White is more active.} Nh6 {[%emt 0:00:46]} (7... e6 $142) 8. Qd2 $16 {[%emt 0:04:09] White is clearly better.} Nf7 {[%emt 0:02:48]} 9. d5 {[%emt 0:00:19][%cal Bd4d5,Bd5e6][%mdl 32]} Nb8 {[%emt 0:05:03]} 10. Nd4 {[%emt 0:06:37]} c5 {[%emt 0:08:04]} (10... Bd7 $142 11. f4 Qc8) 11. Ne6 $18 {[%emt 0:02:23]} Bxe6 {[%emt 0:00:09]} 12. dxe6 {[%emt 0:00:02]} Ne5 {[%emt 0:01:26]} 13. Nd5 {[%emt 0:08:37]} b5 {[%emt 0:06:47]} 14. f4 {[%emt 0:01:25]} Nc4 {[%emt 0:01:09]} 15. Bxc4 {[%emt 0:00:53]} bxc4 {[%emt 0:00:01]} 16. f5 {[%emt 0:03:51]} Nc6 {[%emt 0:01:08]} 17. O-O {[%emt 0:00:57]} Rb8 {[%emt 0:02:29]} 18. b3 {[%emt 0:01:34]} cxb3 {[%emt 0:06:08]} 19. axb3 {[%emt 0:00:09]} a5 {[%emt 0:00:08]} 20. Qe2 {[%emt 0:02:16]} O-O {[%emt 0:07:27]} 21. Bd2 {[%emt 0:02:36]} Nb4 {[%emt 0:06:13]} 22. Qg4 {[%emt 0:04:39] Black must now prevent Bxb4.} gxf5 $2 {[%emt 0:12:25]} (22... g5 23. Bxb4 cxb4) 23. Rxf5 {[%emt 0:01:19] [#] And now Bh6 would win.} Kh8 {[%emt 0:01:56]} 24. Rh5 {[%emt 0:01:42] Threatening mate with Qg6.} Nxd5 {[%emt 0:00:56]} 25. Qg6 {[%emt 0:00:26] Black did not feel at home in the position after the opening.  Weighted Error Value: White=0.07 (flawless) /Black=0.53} 1-0

[Event "Croatian Team Cup Final 2022"]
[Site "Vodice"]
[Date "2022.05.19"]
[Round "2.1"]
[White "Saric, Ivan"]
[Black "Vojak, Daniel"]
[Result "1-0"]
[ECO "B90"]
[WhiteElo "2693"]
[BlackElo "2335"]
[Annotator "TA"]
[PlyCount "53"]
[EventDate "2022.05.18"]
[EventType "team-tourn"]
[EventCountry "CRO"]
[SourceTitle "playchess.com"]
[Source "ChessBase"]
[SourceQuality "1"]
[TimeControl "40/5400+30:1800+30"]

{[%evp 13,53,13,22,4,31,43,69,25,29,32,57,60,97,85,99,64,67,89,145,152,146,163,158,72,66,60,81,42,33,46,106,94,164,31,37,39,33,0,123,111,97,62]} 1. e4 {[%emt 0:02:27]} c5 {[%emt 0:00:29]} 2. Nf3 {[%emt 0:00:06]} d6 {[%emt 0:00:05]} 3. d4 {[%emt 0:00:20]} cxd4 {[%emt 0:00:08]} 4. Nxd4 {[%emt 0:00:03]} Nf6 {[%emt 0:00:08]} 5. Nc3 {[%emt 0:00:04]} a6 {[%emt 0:00:05]} 6. Be3 {[%emt 0:01:31]} e5 {[%emt 0:01:00]} 7. Nb3 {[%emt 0:00:06]} Be6 {[%emt 0:02:51]} 8. h3 {[%emt 0:00:36] B90: Sicilian Najdorf: Unusual White 6th moves, 6 Be3 Ng4 and 6 Be3 e5.} h5 {[%emt 0:07:55]} 9. f4 {[%emt 0:09:07]} Nc6 {[%emt 0:06:38] [#]} 10. Qe2 $146 {[%emt 0:03:12] White is slightly better.} (10. f5 $5 {[%cal Rf5e6]} Bd7 11. Qf3 $14) ({Predecessor:} 10. f5 Bxb3 11. axb3 d5 12. exd5 Ne7 13. Qf3 Rc8 14. Rd1 Qa5 15. d6 Rxc3 16. bxc3 Qxc3+ {½-½ (52) Petrov,V (2355)-Bonn,T (2199) London 2019}) 10... Rc8 {[%emt 0:12:44]} 11. O-O-O {[%emt 0:00:44]} Qc7 {[%emt 0:03:06]} 12. Kb1 {[%emt 0:02:48]} Be7 {[%emt 0:03:58]} 13. g3 {[%emt 0:10:31]} Na5 {[%emt 0:08:55]} 14. Qf2 {[%emt 0:11:43] Strongly threatening Bb6.} Nc4 {[%emt 0:08:02] Inhibits Bb6.} 15. Bxc4 {[%emt 0:05:43]} Qxc4 {[%emt 0:00:32]} (15... Bxc4 $142 16. Bb6 Qc6) 16. f5 $16 {[%emt 0:04:05]} Bd7 {[%emt 0:03:14]} 17. Nd2 {[%emt 0:00:04]} Qc6 {[%emt 0:04:23] [#]} 18. Bg5 {[%emt 0:11:00]} (18. g4 $142 $1 {[%cal Rg4g5]}) 18... b5 {[%emt 0:10:40]} 19. Bxf6 {[%emt 0:00:04]} Bxf6 {[%emt 0:00:12]} 20. Nf3 {[%emt 0:00:26]} b4 {[%emt 0:13:40]} 21. Nd5 {[%emt 0:00:30]} Bd8 {[%emt 0:00:16] Inhibits Nb6.} (21... a5 $14) 22. g4 {[%emt 0:00:54] White is much more active.} a5 {[%emt 0:05:10] [#]} (22... Qc5 $16 {is a better defense.} 23. Qg2 hxg4) 23. Rhg1 {[%emt 0:01:26]} (23. gxh5 $1 $18 {Threatens to win with Qg2.} Rxh5 24. Qg2) 23... Qc4 {[%emt 0:01:45]} 24. b3 {[%emt 0:00:45]} Qc5 {[%emt 0:02:31]} (24... Qxe4 $2 25. Rge1 Rxc2 26. Qxc2 $18 (26. Rxe4 Rxf2 27. Nxe5 dxe5 $17)) 25. Qh2 {[%emt 0:03:28]} Kf8 {[%emt 0:02:06]} (25... Bc6 $1 $11) 26. g5 {[%emt 0:04:25]} Bc6 {[%emt 0:00:58]} 27. f6 {[%emt 0:07:59] Weighted Error Value: White=0.30/Black=0.24 (precise)} 1-0

[Event "Croatian Team Cup Final 2022"]
[Site "Vodice"]
[Date "2022.05.19"]
[Round "2.2"]
[White "Cupic, Lovro"]
[Black "Markus, Robert"]
[Result "0-1"]
[ECO "C13"]
[WhiteElo "2271"]
[BlackElo "2613"]
[Annotator "TA"]
[PlyCount "75"]
[EventDate "2022.05.18"]
[EventType "team-tourn"]
[EventCountry "CRO"]
[SourceTitle "playchess.com"]
[Source "ChessBase"]
[SourceQuality "1"]
[TimeControl "40/5400+30:1800+30"]

{[%evp 16,75,18,-5,18,0,21,9,31,24,22,-19,-13,-35,0,-27,-15,-13,-11,-56,-40,-23,-37,-117,-125,-127,-120,-165,-161,-181,-203,-228,-235,-256,-244,-283,-185,-242,-244,-243,-251,-243,-232,-245,-233,-241,-265,-277,-266,-336,-338,-427,-430,-396,-329,-510,-497,-5406,-2434,-29988,-29989,-29991]} 1. e4 {[%emt 0:00:34] Finkel,A} e6 {[%emt 0:00:11]} 2. d4 {[%emt 0:00:46]} d5 {[%emt 0:00:08]} 3. Nc3 {[%emt 0:01:30]} Nf6 {[%emt 0:00:53]} 4. Bg5 {[%emt 0:00:16]} dxe4 {[%emt 0:00:41]} 5. Nxe4 {[%emt 0:01:54]} Be7 {[%emt 0:00:06]} 6. Nxf6+ {[%emt 0:06:23]} Bxf6 {[%emt 0:00:19]} 7. Bxf6 {[%emt 0:00:07]} Qxf6 {[%emt 0:00:05]} 8. c3 {[%emt 0:04:10]} O-O {[%emt 0:00:51]} 9. Nf3 {[%emt 0:02:28]} Nd7 {[%emt 0:03:37] is the legacy move (9...b6). C13: French: Classical System: 4 Bg5 Be7, Alekhine-Chatard Attack.} 10. Be2 {[%emt 0:02:00]} b6 {[%emt 0:02:57]} 11. Qa4 {[%emt 0:02:40]} a6 {[%emt 0:08:47] [#] The position is equal.} 12. Bb5 $146 {[%emt 0:13:14]} ({Predecessor:} 12. O-O Qe7 13. Nd2 Bb7 14. Bf3 Bxf3 15. Nxf3 c5 16. Rad1 b5 17. Qa5 Rfc8 18. Rfe1 cxd4 19. Rxd4 {0-1 (44) Stefansson,H (2604)-Short,N (2663) Reykjavik 2002 CBM 087 [Finkel,A]}) 12... Rd8 {[%emt 0:07:13][%cal Oc8b7]} 13. O-O {[%emt 0:03:17] [#]} (13. Bc6 $5 {[%cal Rc6a8]} Rb8 14. O-O $14) 13... Bb7 $1 {[%emt 0:07:54]} 14. Be2 {[%emt 0:07:26]} e5 {[%emt 0:04:08]} 15. Qc2 {[%emt 0:06:33]} exd4 {[%emt 0:05:34]} 16. Nxd4 {[%emt 0:03:56]} Ne5 {[%emt 0:00:09]} 17. Nf5 {[%emt 0:06:08]} Qg5 $36 {[%emt 0:09:23][%csl Gb7][%cal Rg5g2][%mdl 2048] White is under pressure.} 18. Ne3 {[%emt 0:02:21]} Ng6 {[%emt 0:03:06]} 19. Bg4 {[%emt 0:02:39] [#] Black converts the advantage convincingly.} (19. Rfd1 $15) 19... Bxg2 $1 $17 {[%emt 0:05:09][%mdl 512] Black is more active.} 20. Kxg2 {[%emt 0:01:37] Kh1 is the strong threat.} h5 {[%emt 0:00:07][%mdl 64] Pin} 21. Rg1 {[%emt 0:00:44][%cal Og2h1]} hxg4 {[%emt 0:00:26]} 22. Kh1 {[%emt 0:04:22]} Qf4 {[%emt 0:05:54] And now ...Qf3+ would win.} 23. Rg3 {[%emt 0:09:28] Against Qf3+} Ne5 {[%emt 0:02:24]} 24. h3 {[%emt 0:01:13]} gxh3 {[%emt 0:05:00]} 25. Rxh3 {[%emt 0:00:22] Threatens to win with Qh7+.} Nd3 {[%emt 0:02:09]} 26. Kg1 {[%emt 0:01:23]} (26. Kg2 {might work better.}) 26... Rd6 $19 {[%emt 0:01:41][%cal Bd8d6,Bd6d4,Bd4e4,Be4e1][%mdl 32]} 27. Ng2 {[%emt 0:00:08]} Qf5 {[%emt 0:00:36]} 28. Rg3 {[%emt 0:00:51]} Rad8 {[%emt 0:00:51] Strongly threatening ...Rh6.} 29. Rd1 {[%emt 0:03:31]} Qh7 {[%emt 0:02:43][%cal Od6h6] White must now prevent ...Rh6!} 30. f4 {[%emt 0:04:00]} c5 {[%emt 0:02:24]} 31. c4 {[%emt 0:00:20]} Rd4 {[%emt 0:03:51]} 32. Rf1 {[%emt 0:02:40]} Qh6 {[%emt 0:01:09][%cal Rd3f4]} 33. Rg4 {[%emt 0:01:48]} f5 {[%emt 0:03:51]} 34. Rh4 {[%emt 0:02:07]} Qe6 {[%emt 0:00:20]} 35. b3 {[%emt 0:00:26]} (35. Rh3 $142) 35... Re4 {[%emt 0:00:46] Hoping for ...Re2.} 36. Rf3 {[%emt 0:00:53]} (36. Rh3 $142 Re2 37. Rxd3 Rxc2 38. Rxd8+ Kh7 39. Rf2 Rc1+ 40. Rf1) 36... Ne1 {[%emt 0:04:27]} 37. Nxe1 {[%emt 0:00:08]} Rxe1+ {[%emt 0:00:03]} 38. Kf2 {[%emt 0:00:14] Weighted Error Value: White=0.73/Black=0.09 (flawless)} 0-1

[Event "Croatian Team Cup Final 2022"]
[Site "Vodice"]
[Date "2022.05.19"]
[Round "2.3"]
[White "Jovanic, Ognjen"]
[Black "Starcevic, Ante Leon"]
[Result "1-0"]
[ECO "E60"]
[WhiteElo "2509"]
[BlackElo "2227"]
[Annotator "TA"]
[PlyCount "91"]
[EventDate "2022.05.18"]
[EventType "team-tourn"]
[EventCountry "CRO"]
[SourceTitle "playchess.com"]
[Source "ChessBase"]
[SourceQuality "1"]
[TimeControl "40/5400+30:1800+30"]

{[%evp 9,91,14,20,16,20,19,40,29,37,39,25,17,17,21,22,19,31,10,15,16,28,23,31,31,39,16,4,7,60,36,49,35,72,71,64,59,66,56,107,107,120,114,264,173,320,320,428,455,568,467,842,779,959,908,1046,885,1110,1045,1138,1044,964,968,980,964,983,979,920,946,987,986,2628,2464,29979,29980,29983,1973,29968,29968,29989,29990,29990,29991,29997,29998]} 1. d4 {[%emt 0:00:07]} Nf6 {[%emt 0:00:16]} 2. Nf3 {[%emt 0:00:40]} g6 {[%emt 0:00:17]} 3. c4 {[%emt 0:00:42]} Bg7 {[%emt 0:00:08]} 4. e3 {[%emt 0:00:22]} O-O {[%emt 0:01:28]} 5. Be2 {[%emt 0:00:03]} b6 {[%emt 0:00:41]} 6. O-O {[%emt 0:01:50] E60: King's Indian: Unusual lines and Fianchetto Variation without Nc3.} Bb7 {[%emt 0:00:05]} 7. Nc3 {[%emt 0:00:05]} Ne4 {[%emt 0:01:42] 7...e6 is the modern continuation.} 8. Nxe4 {[%emt 0:00:56] White is slightly better.} Bxe4 {[%emt 0:00:11]} 9. d5 {[%emt 0:00:21] [#]} e6 $146 {[%emt 0:03:46]} ({Predecessor:} 9... d6 10. Nd2 Bf5 11. e4 Bc8 12. Rb1 c6 13. b3 cxd5 14. cxd5 Nd7 15. Bb2 Nf6 {1-0 (60) Braun,A (2598)-Fressinet,L (2655) Chess.com INT 2019}) 10. Nd4 {[%emt 0:03:22] Hoping for f3.} g5 {[%emt 0:08:40]} 11. Bf3 {[%emt 0:08:30]} Bxf3 {[%emt 0:04:03]} 12. Qxf3 {[%emt 0:00:38]} Na6 {[%emt 0:06:06]} 13. Bd2 {[%emt 0:07:21]} Qf6 {[%emt 0:05:38]} 14. Qe2 {[%emt 0:02:52]} Nc5 {[%emt 0:16:46]} 15. Rad1 {[%emt 0:05:14]} Qg6 {[%emt 0:30:36]} 16. Bb4 {[%emt 0:10:38]} d6 {[%emt 0:00:00]} 17. Rfe1 {[%emt 0:06:00]} Rfe8 {[%emt 0:00:00]} 18. Nc6 {[%emt 0:07:33]} exd5 {[%emt 0:04:26]} (18... Nd7 $11) 19. cxd5 {[%emt 0:04:03]} a5 {[%emt 0:00:34]} 20. Bxc5 {[%emt 0:08:49]} dxc5 {[%emt 0:00:35]} 21. e4 {[%emt 0:01:56]} Be5 {[%emt 0:02:02]} 22. Qc2 {[%emt 0:04:29]} ({Much weaker is} 22. Nxe5 Rxe5 23. f3 Rae8 $11) 22... Qf6 {[%emt 0:05:40]} 23. b3 {[%emt 0:00:37]} Qf4 {[%emt 0:02:01]} (23... Qg6 $14) 24. g3 $16 {[%emt 0:00:58] Active counter play!} Qg4 {[%emt 0:03:19]} 25. Kg2 {[%emt 0:01:17]} h5 {[%emt 0:00:04] A mistake that costs the game.} (25... Qh5 $16) 26. Rd3 {[%emt 0:02:52][%cal Bd1d3,Bd3f3,Bf3f5][%mdl 32]} Qd7 {[%emt 0:02:46]} (26... h4 $142 27. Qc1 Qh5) 27. Rf3 $18 {[%emt 0:01:58]} Qd6 {[%emt 0:01:14]} 28. Rf5 {[%emt 0:03:06]} f6 {[%emt 0:00:03]} 29. Qe2 {[%emt 0:00:23]} Kg7 {[%emt 0:01:05]} (29... Qd7 $142 30. Qxh5 Qg7) 30. Qxh5 {[%emt 0:00:27]} Bc3 {[%emt 0:00:38]} 31. Re2 {[%emt 0:01:33]} a4 {[%emt 0:00:34]} 32. Qf3 {[%emt 0:01:05]} Be5 {[%emt 0:00:17]} 33. h4 {[%emt 0:01:19]} gxh4 {[%emt 0:00:23]} 34. Qg4+ {[%emt 0:01:07]} Kf7 {[%emt 0:00:05]} 35. Qxh4 {[%emt 0:00:36] [#] White threatens Qh7+ and mate.} Rh8 {[%emt 0:01:04] Against Qh7+} 36. Rh5 {[%emt 0:01:07]} Rxh5 {[%emt 0:00:28]} 37. Qxh5+ {[%emt 0:00:03]} Kg7 {[%emt 0:00:14]} 38. Re3 {[%emt 0:06:34]} axb3 {[%emt 0:00:06]} 39. axb3 {[%emt 0:00:11]} Ra2 {[%emt 0:01:24]} 40. Rf3 {[%emt 0:00:00] [#] Intending Qg4+ and mate.} Rb2 {[%emt 0:00:00]} 41. Qg4+ {[%emt 0:07:11]} Kf7 {[%emt 0:02:50]} 42. Qc8 {[%emt 0:01:21]} (42. Qg5 $142 Bd4 43. e5 Rxf2+ 44. Rxf2 Qxd5+ 45. Kh2 Qxc6 46. Rxf6+ Qxf6 47. Qxf6+ Ke8 48. Qg6+ Ke7 49. e6) 42... Kg7 {[%emt 0:06:37]} 43. Nd8 {[%emt 0:01:23] White mates.} Bd4 {[%emt 0:01:56]} 44. Qg4+ {[%emt 0:00:16]} Kf8 {[%emt 0:01:23]} 45. Ne6+ {[%emt 0:00:32]} Ke8 {[%emt 0:00:34]} 46. Qg8+ {[%emt 0:00:19] Weighted Error Value: White=0.11 (very precise) /Black=0.69} 1-0